fUSD/lending_fUSD_20251201
["ID","MTS","AMOUNT","RATE_DAILY","PERIOD"]
[395229214,1764556242249,-1517.64,0.000153,2]
[395229216,1764556242258,-152.44390529,0.00015305,2]
[395229218,1764556242267,-214.27357495,0.00015305,2]
[395229220,1764556242277,-150.0,0.00015312,2]
[395229222,1764556242286,-150.0,0.00015315,2]
[395229223,1764556242295,-150.0,0.00015319,2]
[395229225,1764556242304,-150.0,0.0001532,2]
[395229227,1764556242313,-152.44390529,0.00015322,2]
[395229229,1764556242322,-214.27357495,0.00015322,2]
[395229231,1764556242332,-373.97112144,0.00015335,2]
[395229234,1764556242341,-150.0,0.00015336,2]
[395229236,1764556242350,-152.44390529,0.00015339,2]
[395229238,1764556242359,-214.27357495,0.00015339,2]
[395229240,1764556242369,-150.0,0.00015342,2]
[395229242,1764556242379,-150.0,0.00015342,2]
[395229244,1764556242390,-600.0,0.00015342,2]
[395229247,1764556242410,-150.0,0.00015348,2]
[395229249,1764556242420,-150.0,0.00015349,2]
[395229251,1764556242429,-150.0,0.00015353,2]
[395229253,1764556242439,-152.44390529,0.00015356,2]
[395229255,1764556242448,-214.27357495,0.00015356,2]
[395229258,1764556242458,-150.0,0.00015359,2]
[395229261,1764556242469,-150.0,0.00015369,2]
[395229263,1764556242479,-150.0,0.0001537,2]
[395229265,1764556242490,-152.44390529,0.00015373,2]
[395229267,1764556242500,-214.27357495,0.00015373,2]
[395229269,1764556242510,-150.0,0.0001538,2]
[395229271,1764556242520,-150.0,0.00015383,2]
[395229273,1764556242531,-150.0,0.00015386,2]
[395229275,1764556242542,-37038.67857742,0.00015388,2]
[395229277,1764556242555,-152.44390529,0.00015391,2]
[395229279,1764556242566,-214.27357495,0.00015391,2]
[395229281,1764556242576,-150.0,0.00015397,2]
[395229283,1764556242585,-150.0,0.00015397,2]
[395229285,1764556242595,-13856.4797207,0.000154,2]
[395229287,1764556242605,-504.59701012,0.000154,2]
[395229289,1764556242615,-150.0,0.00015407,2]
[395229291,1764556242624,-152.44390529,0.00015408,2]
[395229293,1764556242634,-214.27357495,0.00015408,2]
[395229296,1764556242643,-150.0,0.00015409,2]
[395229298,1764556242652,-150.0,0.00015409,2]
[395229300,1764556242662,-150.0,0.00015411,2]
[395229302,1764556242671,-150.0,0.00015418,2]
[395229304,1764556242681,-150.0,0.00015425,2]
[395229306,1764556242690,-152.44390529,0.00015425,2]
[395229308,1764556242699,-214.27357495,0.00015425,2]
[395229310,1764556242710,-1301.48,0.00015428,2]
[395229312,1764556242719,-150.0,0.00015431,2]
[395229315,1764556242728,-152.44390529,0.00015442,2]
[395229318,1764556242738,-214.27357495,0.00015442,2]
[395229320,1764556242747,-150.0,0.00015442,2]
[395229324,1764556242761,-150.0,0.00015449,2]
[395229326,1764556242770,-150.0,0.00015451,2]
[395229328,1764556242779,-150.0,0.00015452,2]
[395229331,1764556242788,-150.0,0.00015452,2]
[395229334,1764556242799,-150.0,0.00015455,2]
[395229337,1764556242809,-152.44390529,0.00015459,2]
[395229340,1764556242818,-214.27357495,0.00015459,2]
[395229343,1764556242828,-500.0,0.00015468,2]
[395229345,1764556242838,-500.0,0.00015468,2]
[395229347,1764556242848,-500.0,0.00015468,2]
[395229349,1764556242858,-1500.0,0.00015468,2]
[395229352,1764556242867,-1500.0,0.00015468,2]
[395229355,1764556242877,-1195.52666433,0.00015468,2]
[395229358,1764556242887,-1500.0,0.00015468,2]
[395229361,1764556242900,-458.41629171,0.00015468,2]
[395229364,1764556242910,-415.43921071,0.00015468,2]
[395229367,1764556242919,-1500.0,0.00015468,2]
[395229369,1764556242928,-501.51277925,0.00015468,2]
[395229371,1764556242938,-1002.96420978,0.00015468,2]
[395229373,1764556242947,-501.12486699,0.00015468,2]
[395229375,1764556242956,-150.0,0.0001547,2]
[395229378,1764556242966,-150.0,0.00015473,2]
[395229380,1764556242976,-152.44390529,0.00015476,2]
[395229382,1764556242985,-214.27357495,0.00015476,2]
[395229384,1764556242995,-150.0,0.00015476,2]
[395229386,1764556243005,-150.0,0.00015479,2]
[395229388,1764556243014,-150.0,0.00015479,2]
[395229390,1764556243024,-150.0,0.00015484,2]
[395229392,1764556243033,-152.44390529,0.00015494,2]
[395229394,1764556243043,-214.27357495,0.00015494,2]
[395229396,1764556243053,-150.0,0.00015503,2]
[395229398,1764556243062,-150.0,0.00015504,2]
[395229400,1764556243071,-150.0,0.00015507,2]
[395229402,1764556243080,-150.0,0.00015507,2]
[395229404,1764556243089,-152.44390529,0.00015511,2]
[395229406,1764556243099,-214.27357495,0.00015511,2]
[395229408,1764556243109,-150.0,0.00015516,2]
[395229411,1764556243125,-150.0,0.00015527,2]
[395229413,1764556243135,-152.44390529,0.00015528,2]
[395229415,1764556243145,-214.27357495,0.00015528,2]
[395229417,1764556243155,-150.0,0.0001553,2]
[395229419,1764556243166,-150.0,0.0001553,2]
[395229421,1764556243175,-150.0,0.0001553,2]
[395229423,1764556243186,-150.0,0.00015534,2]
[395229425,1764556243195,-150.0,0.00015535,2]
[395229427,1764556243207,-152.44390529,0.00015545,2]
[395229429,1764556243216,-214.27357495,0.00015545,2]
[395229431,1764556243226,-150.0,0.00015549,2]
[395229433,1764556243235,-189.44,0.0001555,2]
[395229435,1764556243245,-150.0,0.00015551,2]
[395229437,1764556243254,-150.0,0.00015562,2]
[395229439,1764556243264,-150.0,0.00015562,2]
[395229441,1764556243273,-152.44390529,0.00015562,2]
[395229443,1764556243283,-214.27357495,0.00015562,2]
[395229445,1764556243292,-150.0,0.00015566,2]
[395229448,1764556243302,-150.0,0.00015571,2]
[395229450,1764556243312,-150.0,0.00015575,2]
[395229452,1764556243325,-152.44390529,0.00015579,2]
[395229454,1764556243334,-214.27357495,0.00015579,2]
[395229456,1764556243343,-150.0,0.00015582,2]
[395229458,1764556243352,-433.0,0.00015586,2]
[395229460,1764556243362,-150.0,0.00015589,2]
[395229462,1764556243373,-150.0,0.00015591,2]
[395229464,1764556243382,-152.44390529,0.00015597,2]
[395229466,1764556243392,-214.27357495,0.00015597,2]
[395229469,1764556243403,-150.0,0.00015597,2]
[395229471,1764556243412,-150.0,0.00015599,2]
[395229473,1764556243422,-150.0,0.00015611,2]
[395229475,1764556243432,-152.44390529,0.00015614,2]
[395229477,1764556243442,-214.27357495,0.00015614,2]
[395229479,1764556243451,-150.0,0.00015614,2]
[395229481,1764556243461,-150.0,0.00015616,2]
[395229483,1764556243471,-150.0,0.00015616,2]
[395229485,1764556243481,-151.0,0.00015617,2]
[395229487,1764556243491,-150.0,0.00015623,2]
[395229489,1764556243502,-150.0,0.00015627,2]
[395229491,1764556243514,-152.44390529,0.00015631,2]
[395229493,1764556243524,-214.27357495,0.00015631,2]
[395229495,1764556243534,-150.0,0.00015644,2]
[395229497,1764556243544,-150.0,0.00015647,2]
[395229499,1764556243554,-150.0,0.00015647,2]
[395229501,1764556243564,-152.44390529,0.00015648,2]
[395229504,1764556243574,-214.27357495,0.00015648,2]
[395229506,1764556243583,-150.0,0.00015652,2]
[395229508,1764556243593,-150.0,0.00015652,2]
[395229510,1764556243602,-150.0,0.00015658,2]
[395229512,1764556243612,-152.44390529,0.00015665,2]
[395229514,1764556243621,-214.27357495,0.00015665,2]
[395229516,1764556243631,-150.0,0.00015665,2]
[395229518,1764556243640,-150.0,0.0001567,2]
[395229520,1764556243650,-150.0,0.00015671,2]
[395229522,1764556243659,-150.0,0.00015671,2]
[395229524,1764556243669,-150.0,0.0001568,2]
[395229526,1764556243678,-152.44390529,0.00015682,2]
[395229528,1764556243688,-214.27357495,0.00015682,2]
[395229531,1764556243700,-150.0,0.00015689,2]
[395229533,1764556243711,-150.0,0.00015692,2]
[395229535,1764556243720,-150.0,0.00015694,2]
[395229537,1764556243730,-150.0,0.00015699,2]
[395229539,1764556243739,-152.44390529,0.00015699,2]
[395229540,1764556243749,-214.27357495,0.00015699,2]
[395229541,1764556243760,-1301.48,0.00015702,2]
[395229542,1764556243773,-150.0,0.00015712,2]
[395229543,1764556243782,-150.0,0.00015712,2]
[395229544,1764556243791,-150.0,0.00015712,2]
[395229545,1764556243801,-152.44390529,0.00015717,2]
[395229546,1764556243811,-214.27357495,0.00015717,2]
[395229547,1764556243821,-150.0,0.00015718,2]
[395229548,1764556243831,-150.0,0.0001572,2]
[395229549,1764556243841,-150.0,0.00015726,2]
[395229550,1764556243850,-150.0,0.00015726,2]
[395229551,1764556243860,-152.44390529,0.00015734,2]
[395229552,1764556243870,-214.27357495,0.00015734,2]
[395229553,1764556243880,-150.0,0.00015742,2]
[395229554,1764556243889,-150.0,0.00015745,2]
[395229556,1764556243901,-189.44,0.00015748,2]
[395229558,1764556243912,-152.44390529,0.00015751,2]
[395229560,1764556243922,-214.27357495,0.00015751,2]
[395229562,1764556243931,-150.0,0.00015751,2]
[395229564,1764556243941,-150.0,0.00015753,2]
[395229566,1764556243951,-37038.67857742,0.00015766,2]
[395229568,1764556243960,-150.0,0.00015766,2]
[395229570,1764556243970,-152.44390529,0.00015768,2]
[395229572,1764556243980,-214.27357495,0.00015768,2]
[395229574,1764556243990,-150.0,0.00015773,2]
[395229576,1764556244001,-150.0,0.00015773,2]
[395229578,1764556244012,-150.0,0.00015773,2]
[395229580,1764556244024,-150.0,0.00015778,2]
[395229582,1764556244038,-200.0,0.00015781,2]
[395229584,1764556244050,-500.0,0.00015781,2]
[395229586,1764556244064,-200.0,0.00015781,2]
[395229588,1764556244076,-150.0,0.00015781,2]
[395229590,1764556244088,-150.0,0.00015781,2]
[395229592,1764556244100,-150.0,0.00015782,2]
[395229594,1764556244111,-152.44390529,0.00015785,2]
[395229597,1764556244128,-214.27357495,0.00015785,2]
[395229599,1764556244139,-150.0,0.0001579,2]
[395229601,1764556244150,-1582.6,0.0001579,2]
[395229603,1764556244162,-152.44390529,0.00015802,2]
[395229605,1764556244173,-214.27357495,0.00015802,2]
[395229607,1764556244183,-150.0,0.00015808,2]
[395229609,1764556244193,-150.0,0.0001581,2]
[395229611,1764556244207,-150.0,0.00015813,2]
[395229613,1764556244216,-150.0,0.00015814,2]
[395229615,1764556244227,-221.53,0.00015818,2]
[395229617,1764556244237,-152.44390529,0.0001582,2]
[395229619,1764556244246,-214.27357495,0.0001582,2]
[395229621,1764556244256,-10000.0,0.00015825,2]
[395229623,1764556244265,-190.0,0.00015829,2]
[395229625,1764556244275,-150.0,0.00015834,2]
[395229627,1764556244285,-150.0,0.00015836,2]
[395229630,1764556244301,-150.0,0.00015836,2]
[395229632,1764556244313,-152.44390529,0.00015837,2]
[395229634,1764556244324,-214.27357495,0.00015837,2]
[395229636,1764556244334,-150.0,0.00015838,2]
[395229638,1764556244344,-150.0,0.00015843,2]
[395229640,1764556244354,-150.0,0.00015844,2]
[395229642,1764556244365,-152.44390529,0.00015854,2]
[395229644,1764556244375,-214.27357495,0.00015854,2]
[395229646,1764556244385,-150.0,0.00015854,2]
[395229648,1764556244395,-150.0,0.00015854,2]
[395229651,1764556244405,-150.0,0.00015854,2]
[395229653,1764556244415,-150.0,0.00015854,2]
[395229655,1764556244427,-150.0,0.00015862,2]
[395229657,1764556244437,-150.0,0.00015863,2]
[395229659,1764556244447,-250.0,0.00015865,2]
[395229661,1764556244458,-152.44390529,0.00015871,2]
[395229663,1764556244468,-214.27357495,0.00015871,2]
[395229665,1764556244479,-150.0,0.00015874,2]
[395229667,1764556244493,-150.0,0.00015876,2]
[395229669,1764556244507,-150.0,0.00015886,2]
[395229671,1764556244518,-152.44390529,0.00015888,2]
[395229673,1764556244529,-214.27357495,0.00015888,2]
[395229675,1764556244539,-150.0,0.0001589,2]
[395229678,1764556244550,-150.0,0.0001589,2]
[395229680,1764556244561,-600.0,0.0001589,2]
[395229682,1764556244571,-150.0,0.00015894,2]
[395229684,1764556244581,-150.0,0.00015894,2]
[395229686,1764556244591,-322.63,0.000159,2]
[395229688,1764556244600,-1147.20803123,0.000159,2]
[395229690,1764556244610,-1147.20803118,0.000159,2]
[395229692,1764556244621,-1147.20803118,0.000159,2]
[395229694,1764556244631,-1147.20803118,0.000159,2]
[395229696,1764556244640,-1147.20803118,0.000159,2]
[395229698,1764556244650,-152.44390529,0.00015905,2]
[395229700,1764556244659,-214.27357495,0.00015905,2]
[395229702,1764556244669,-150.0,0.00015905,2]
[395229704,1764556244679,-150.0,0.00015908,2]
[395229706,1764556244692,-150.0,0.0001591,2]
[395229708,1764556244702,-150.0,0.00015918,2]
[395229711,1764556244712,-152.44390529,0.00015923,2]
[395229713,1764556244723,-214.27357495,0.00015923,2]
[395229715,1764556244734,-150.0,0.00015934,2]
[395229717,1764556244744,-150.0,0.00015935,2]
[395229719,1764556244754,-150.0,0.00015936,2]
[395229721,1764556244764,-152.44390529,0.0001594,2]
[395229723,1764556244775,-214.27357495,0.0001594,2]
[395229725,1764556244784,-150.0,0.00015941,2]
[395229727,1764556244795,-587.0,0.00015945,2]
[395229729,1764556244805,-150.0,0.00015945,2]
[395229731,1764556244815,-150.0,0.00015945,2]
[395229733,1764556244825,-150.0,0.00015955,2]
[395229735,1764556244835,-152.44390529,0.00015957,2]
[395229737,1764556244845,-214.27357495,0.00015957,2]
[395229739,1764556244854,-150.0,0.00015958,2]
[395229741,1764556244864,-150.0,0.00015967,2]
[395229743,1764556244874,-150.0,0.00015973,2]
[395229745,1764556244887,-189.44,0.00015973,2]
[395229747,1764556244898,-150.0,0.00015974,2]
[395229750,1764556244908,-152.44390529,0.00015974,2]
[395229752,1764556244918,-214.27357495,0.00015974,2]
[395229753,1764556244928,-1301.48,0.00015976,2]
[395229756,1764556244938,-150.0,0.00015981,2]
[395229758,1764556244948,-566.0,0.00015989,2]
[395229760,1764556244958,-152.44390529,0.00015991,2]
[395229762,1764556244968,-214.27357495,0.00015991,2]
[395229764,1764556244977,-151.0,0.00015997,2]
[395229766,1764556244987,-150.0,0.00015998,2]
[395229768,1764556244997,-4105.14682875,0.00016,2]
[395229770,1764556245008,-552.29203276,0.00016,2]
[395229772,1764556245017,-23669.11750587,0.00016,2]
[395229774,1764556245027,-217992.40892067,0.00016,2]
[395229776,1764556245039,-150.0,0.00016,2]
[395229777,1764556245048,-150.0,0.00016,2]
[395229778,1764556245059,-346159.54810529,0.00016,4]
[395229779,1764556245069,-151.0,0.00016,2]
[395229780,1764556245083,-151.0,0.00016,2]
[395229781,1764556245093,-151.0,0.00016,2]
[395229782,1764556245104,-151.0,0.00016,2]
[395229783,1764556245114,-387.628526,0.00016,2]
[395229784,1764556245126,-151.0,0.00016,2]
[395229785,1764556245136,-151.0,0.00016,2]
[395229786,1764556245146,-151.0,0.00016,2]
[395229787,1764556245156,-282.230873,0.00016,2]
[395229788,1764556245167,-151.0,0.00016,2]
[395229789,1764556245178,-151.0,0.00016,2]
[395229790,1764556245189,-151.0,0.00016,2]
[395229791,1764556245203,-189.67042,0.00016,2]
[395229792,1764556245216,-151.0,0.00016,2]
[395229793,1764556245225,-151.0,0.00016,2]
[395229794,1764556245235,-387.628526,0.00016,2]
[395229795,1764556245245,-387.628526,0.00016,2]
[395229796,1764556245255,-151.0,0.00016,2]
[395229797,1764556245265,-387.628526,0.00016,2]
[395229798,1764556245274,-151.0,0.00016,2]
[395229799,1764556245289,-151.0,0.00016,2]
[395229800,1764556245298,-151.0,0.00016,2]
[395229801,1764556245308,-151.0,0.00016,2]
[395229802,1764556245318,-254.469934,0.00016,2]
[395229803,1764556245327,-2000.0,0.00016,2]
[395229804,1764556245338,-151.0,0.00016,2]
[395229805,1764556245348,-254.469934,0.00016,2]
[395229806,1764556245358,-151.0,0.00016,2]
[395229807,1764556245368,-254.469934,0.00016,2]
[395229808,1764556245377,-254.469934,0.00016,2]
[395229809,1764556245387,-151.0,0.00016,2]
[395229810,1764556245397,-269.0,0.00016,2]
[395229811,1764556245407,-192.674558,0.00016,2]
[395229812,1764556245419,-151.0,0.00016,2]
[395229813,1764556245429,-151.0,0.00016,2]
[395229814,1764556245439,-189.44,0.00016001,2]
[395229815,1764556245449,-150.0,0.00016005,2]
[395229816,1764556245459,-150.0,0.00016006,2]
[395229817,1764556245469,-152.44390529,0.00016008,2]
[395229818,1764556245479,-214.27357495,0.00016008,2]
[395229819,1764556245490,-150.0,0.00016016,2]
[395229820,1764556245500,-150.0,0.00016016,2]
[395229821,1764556245510,-150.0,0.00016016,2]
[395229822,1764556245521,-2000.0,0.00016016,2]
[395229823,1764556245531,-2000.0,0.00016016,2]
[395229824,1764556245541,-500.0,0.00016016,2]
[395229826,1764556245552,-2000.0,0.00016016,2]
[395229828,1764556245562,-152.44390529,0.00016025,2]
[395229830,1764556245572,-214.27357495,0.00016025,2]
[395229832,1764556245582,-150.0,0.00016027,2]
[395229834,1764556245592,-150.0,0.00016029,2]
[395229835,1764556245602,-150.0,0.00016029,2]
[395229836,1764556245611,-150.0,0.00016039,2]
[395229837,1764556245620,-152.44390529,0.00016043,2]
[395229838,1764556245630,-214.27357495,0.00016043,2]
[395229839,1764556245640,-150.0,0.00016043,2]
[395229840,1764556245650,-798.51664654,0.00016045,2]
[395229841,1764556245661,-1123.58810417,0.00016047,2]
[395229842,1764556245671,-2351.0,0.0001605,2]
[395229843,1764556245681,-150.0,0.00016053,2]
[395229844,1764556245691,-150.0,0.00016055,2]
[395229845,1764556245700,-150.0,0.00016055,2]
[395229846,1764556245710,-152.44390529,0.0001606,2]
[395229847,1764556245721,-214.27357495,0.0001606,2]
[395229848,1764556245731,-150.0,0.0001606,2]
[395229849,1764556245743,-150.0,0.00016072,2]
[395229850,1764556245754,-150.0,0.00016076,2]
[395229851,1764556245765,-152.44390529,0.00016077,2]
[395229852,1764556245775,-214.27357495,0.00016077,2]
[395229853,1764556245786,-150.0,0.00016077,2]
[395229860,1764556245796,-150.0,0.00016082,2]
[395229863,1764556246255,-150.0,0.00016091,2]
[395229865,1764556246264,-152.44390529,0.00016094,2]
[395229867,1764556246273,-214.27357495,0.00016094,2]
[395229868,1764556246283,-150.0,0.00016097,2]
[395229869,1764556246292,-150.0,0.00016101,2]
[395229870,1764556246302,-150.0,0.00016104,2]
[395229871,1764556246311,-150.0,0.0001611,2]
[395229872,1764556246320,-150.0,0.0001611,2]
[395229873,1764556246329,-152.44390529,0.00016111,2]
[395229874,1764556246339,-214.27357495,0.00016111,2]
[395229875,1764556246348,-277.67,0.00016116,2]
[395229876,1764556246359,-150.0,0.00016122,2]
[395229878,1764556246368,-150.0,0.00016125,2]
[395229880,1764556246377,-152.44390529,0.00016128,2]
[395229882,1764556246388,-214.27357495,0.00016128,2]
[395229884,1764556246397,-150.0,0.00016137,2]
[395229886,1764556246406,-150.0,0.00016137,2]
[395229887,1764556246416,-150.0,0.00016137,2]
[395229889,1764556246426,-150.0,0.00016137,2]
[395229891,1764556246436,-150.0,0.00016137,2]
[395229892,1764556246446,-150.0,0.00016137,2]
[395229893,1764556246458,-150.0,0.00016137,2]
[395229894,1764556246473,-151.0,0.00016144,2]
[395229895,1764556246483,-37038.67857742,0.00016144,2]
[395229896,1764556246494,-152.44390529,0.00016146,2]
[395229897,1764556246505,-214.27357495,0.00016146,2]
[395229898,1764556246515,-936.93286639,0.00016146,2]
[395229899,1764556246524,-300.0,0.00016146,2]
[395229900,1764556246535,-194.72792766,0.00016146,2]
[395229901,1764556246545,-3000.0,0.00016146,2]
[395229902,1764556246555,-500.0,0.00016146,2]
[395229903,1764556246565,-533.88981491,0.00016146,2]
[395229904,1764556246574,-151.0,0.00016146,2]
[395229905,1764556246584,-500.0,0.00016146,2]
[395229906,1764556246594,-151.0,0.00016146,2]
[395229907,1764556246603,-500.0,0.00016146,2]
[395229908,1764556246612,-151.0,0.00016146,2]
[395229909,1764556246622,-250.39585961,0.00016146,2]
[395229910,1764556246631,-151.0,0.00016146,2]
[395229911,1764556246645,-151.0,0.00016146,2]
[395229912,1764556246655,-151.0,0.00016146,2]
[395229913,1764556246664,-250.0,0.00016146,2]
[395229914,1764556246674,-151.0,0.00016146,2]
[395229915,1764556246683,-250.0,0.00016146,2]
[395229916,1764556246693,-151.0,0.00016146,2]
[395229917,1764556246702,-250.0,0.00016146,2]
[395229918,1764556246712,-151.0,0.00016146,2]
[395229919,1764556246722,-250.0,0.00016146,2]
[395229920,1764556246731,-151.0,0.00016146,2]
[395229921,1764556246741,-250.0,0.00016146,2]
[395229922,1764556246751,-151.0,0.00016146,2]
[395229923,1764556246761,-250.0,0.00016146,2]
[395229924,1764556246771,-151.0,0.00016146,2]
[395229925,1764556246780,-250.0,0.00016146,2]
[395229926,1764556246790,-8000.0,0.00016146,2]
[395229927,1764556246800,-151.0,0.00016146,2]
[395229928,1764556246810,-250.0,0.00016146,2]
[395229929,1764556246820,-8000.0,0.00016146,2]
[395229930,1764556246830,-151.0,0.00016146,2]
[395229931,1764556246840,-250.0,0.00016146,2]
[395229932,1764556246850,-8000.0,0.00016146,2]
[395229933,1764556246859,-250.0,0.00016146,2]
[395229934,1764556246869,-8000.0,0.00016146,2]
[395229935,1764556246879,-250.0,0.00016146,2]
[395229936,1764556246889,-578.20924308,0.00016146,2]
[395229937,1764556246898,-8000.0,0.00016146,2]
[395229938,1764556246908,-250.0,0.00016146,2]
[395229939,1764556246918,-8000.0,0.00016146,2]
[395229940,1764556246928,-250.0,0.00016146,2]
[395229941,1764556246938,-8000.0,0.00016146,2]
[395229942,1764556246947,-322.6107,0.00016146,2]
[395229943,1764556246957,-8000.0,0.00016146,2]
[395229944,1764556246966,-8000.0,0.00016146,2]
[395229945,1764556246976,-500.0,0.00016146,2]
[395229946,1764556246985,-8000.0,0.00016146,2]
[395229947,1764556246995,-500.0,0.00016146,2]
[395229948,1764556247005,-8000.0,0.00016146,2]
[395229949,1764556247018,-500.0,0.00016146,2]
[395229950,1764556247028,-8000.0,0.00016146,2]
[395229951,1764556247038,-500.0,0.00016146,2]
[395229952,1764556247048,-6003.54480208,0.00016146,2]
[395229953,1764556247058,-194.72792766,0.00016146,2]
[395229954,1764556247068,-500.0,0.00016146,2]
[395229955,1764556247078,-250.0,0.00016146,2]
[395229956,1764556247087,-500.0,0.00016146,2]
[395229957,1764556247096,-250.0,0.00016146,2]
[395229958,1764556247106,-500.0,0.00016146,2]
[395229959,1764556247116,-250.0,0.00016146,2]
[395229960,1764556247128,-500.0,0.00016146,2]
[395229961,1764556247138,-250.0,0.00016146,2]
[395229962,1764556247147,-500.0,0.00016146,2]
[395229963,1764556247157,-151.0,0.00016146,2]
[395229964,1764556247167,-500.0,0.00016146,2]
[395229965,1764556247177,-250.0,0.00016146,2]
[395229966,1764556247187,-151.0,0.00016146,2]
[395229967,1764556247196,-500.0,0.00016146,2]
[395229968,1764556247207,-250.0,0.00016146,2]
[395229969,1764556247216,-151.0,0.00016146,2]
[395229970,1764556247226,-500.0,0.00016146,2]
[395229971,1764556247237,-250.0,0.00016146,2]
[395229972,1764556247246,-151.0,0.00016146,2]
[395229973,1764556247257,-500.0,0.00016146,2]
[395229974,1764556247266,-250.0,0.00016146,2]
[395229975,1764556247276,-151.0,0.00016146,2]
[395229976,1764556247288,-257.91778498,0.00016146,2]
[395229977,1764556247297,-250.0,0.00016146,2]
[395229978,1764556247307,-151.0,0.00016146,2]
[395229979,1764556247317,-250.0,0.00016146,2]
[395229980,1764556247326,-151.0,0.00016146,2]
[395229981,1764556247336,-500.0,0.00016146,2]
[395229982,1764556247345,-250.0,0.00016146,2]
[395229983,1764556247355,-151.0,0.00016146,2]
[395229984,1764556247365,-500.0,0.00016146,2]
[395229985,1764556247375,-250.0,0.00016146,2]
[395229986,1764556247388,-151.0,0.00016146,2]
[395229987,1764556247400,-250.0,0.00016146,2]
[395229988,1764556247409,-500.0,0.00016146,2]
[395229989,1764556247419,-1000.0,0.00016146,2]
[395229990,1764556247430,-151.0,0.00016146,2]
[395229991,1764556247440,-500.0,0.00016146,2]
[395229992,1764556247449,-1000.0,0.00016146,2]
[395229993,1764556247460,-151.0,0.00016146,2]
[395229994,1764556247470,-250.0,0.00016146,2]
[395229995,1764556247479,-151.0,0.00016146,2]
[395229996,1764556247489,-500.0,0.00016146,2]
[395229997,1764556247499,-1000.0,0.00016146,2]
[395229998,1764556247509,-151.0,0.00016146,2]
[395229999,1764556247519,-250.0,0.00016146,2]
[395230000,1764556247528,-500.0,0.00016146,2]
[395230001,1764556247538,-1000.0,0.00016146,2]
[395230002,1764556247548,-151.0,0.00016146,2]
[395230003,1764556247558,-250.0,0.00016146,2]
[395230004,1764556247567,-500.0,0.00016146,2]
[395230005,1764556247577,-250.0,0.00016146,2]
[395230006,1764556247586,-1000.0,0.00016146,2]
[395230007,1764556247596,-500.0,0.00016146,2]
[395230008,1764556247605,-250.0,0.00016146,2]
[395230009,1764556247615,-1000.0,0.00016146,2]
[395230010,1764556247624,-500.0,0.00016146,2]
[395230011,1764556247634,-250.0,0.00016146,2]
[395230012,1764556247644,-1000.0,0.00016146,2]
[395230013,1764556247654,-500.0,0.00016146,2]
[395230014,1764556247663,-250.0,0.00016146,2]
[395230015,1764556247673,-1000.0,0.00016146,2]
[395230016,1764556247683,-500.0,0.00016146,2]
[395230017,1764556247692,-250.0,0.00016146,2]
[395230018,1764556247702,-1000.0,0.00016146,2]
[395230019,1764556247711,-1000.0,0.00016146,2]
[395230020,1764556247721,-500.0,0.00016146,2]
[395230021,1764556247731,-250.0,0.00016146,2]
[395230022,1764556247741,-1000.0,0.00016146,2]
[395230023,1764556247751,-500.0,0.00016146,2]
[395230024,1764556247761,-1000.0,0.00016146,2]